[Event "2nd Namma Bengaluru Open-A 2025"]
[Site "Bengaluru"]
[Date "2025.04.18"]
[Round "10.22"]
[White "Subhayan Kundu"]
[Black "Gochelashvili, David"]
[Result "1-0"]
[Annotator "RC"]
[ECO "B22"]
[WhiteElo "2356"]
[BlackElo "2227"]
[PlyCount "77"]
[EventDate "2025.04.10"]
[EventType "swiss"]
[EventCountry "IND"]
[SourceTitle "playchess.com"]
[Source "ChessBase"]
[SourceQuality "1"]
[TimeControl "5400+30"]

1. e4 {[%emt 1:31:00]} c5 {[%emt 0:05:40]} 2. c3 {[%emt 0:00:00]} Nf6 {[%emt 0:00:17]} 3. e5 {[%emt 0:00:00]} Nd5 {[%emt 0:00:05]} 4. Nf3 {[%emt 0:00:00]} Nc6 {[%emt 0:00:08]} 5. Bc4 {[%emt 0:00:00]} Nb6 {[%emt 0:00:05]} 6. Bb3 {[%emt 0:00:00]} c4 {[%emt 0:00:24]} 7. Bc2 {[%emt 0:00:00]} d6 {[%emt 0:00:29]} 8. exd6 {[%emt 0:00:00]} Qxd6 {[%emt 0:00:04]} 9. O-O {[%emt 0:00:00]} Bg4 {[%emt 0:00:06]} 10. Re1 {[%emt 0:00:00]} Bh5 {[%emt 0:00:23]} 11. b3 {[%emt 0:00:00]} e6 {[%emt 0:00:20]} 12. Na3 {[%emt 0:00:00]} cxb3 {[%emt 0:03:36]} 13. axb3 {[%emt 0:00:00]} Be7 {[%emt 0:00:17]} 14. d4 {[%emt 0:00:00]} Nd5 {[%emt 0:03:14]} 15. Nb5 {[%emt 0:00:00]} Qd7 {[%emt 0:10:10]} 16. c4 {[%emt 0:00:00]} Ncb4 {[%emt 0:30:58]} 17. Bb1 {[%emt 0:00:00]} a6 {[%emt 0:09:24]} 18. h3 {[%emt 0:00:00]} Nf6 {[%emt 0:13:01]} 19. Nc3 {[%emt 0:00:00]} Rd8 {[%emt 0:01:05]} 20. Be3 {[%emt 0:00:00]} Nc6 {[%emt 0:08:48]} 21. d5 {[%emt 0:00:00]} exd5 {[%emt 0:00:22]} 22. Bb6 {[%emt 0:00:00]} O-O {[%emt 0:04:28]} 23. Bxd8 {[%emt 0:00:00]} Rxd8 {[%emt 0:00:44]} 24. Nxd5 {[%emt 0:00:00]} Kf8 {[%emt 0:06:56]} 25. Qd3 {[%emt 0:01:51]} Nb4 {[%emt 0:01:10]} 26. Nxb4 {[%emt 0:02:41]} Bxb4 {[%emt 0:00:03]} 27. Rd1 {[%emt 0:00:07]} Bd6 {[%emt 0:01:07]} 28. Kf1 {[%emt 0:01:53]} Qc6 {[%emt 0:00:13]} 29. Bc2 {[%emt 0:01:28]} Bg6 {[%emt 0:00:48]} 30. Qe2 {[%emt 0:00:54]} Re8 {[%emt 0:00:08]} 31. Qd2 {[%emt 0:00:07]} Bxc2 {[%emt 0:00:52]} 32. Qxc2 {[%emt 0:00:05]} Ne4 {[%emt 0:00:22]} 33. Re1 {[%emt 0:01:36]} Bc5 {[%emt 0:00:02]} 34. Rad1 {[%emt 0:00:41]} f5 {[%emt 0:00:20]} 35. Rd5 {[%emt 0:00:53]} Qf6 {[%emt 0:01:02]} 36. Nd2 {[%emt 0:01:31]} Bxf2 {[%emt 0:00:46]} 37. Nxe4 {[%emt 0:00:14]} Bh4 {[%emt 0:00:28]} 38. Nf2 {[%emt 0:00:28]} Rxe1+ {[%emt 0:00:05]} 39. Kxe1 {[%emt 0:00:00]} 1-0

[Event "2nd Namma Bengaluru Open-A 2025"]
[Site "Bengaluru"]
[Date "2025.04.18"]
[Round "10.23"]
[White "Madhesh Kumar S"]
[Black "John Veny Akkarakaran"]
[Result "1/2-1/2"]
[Annotator "RC"]
[ECO "C11"]
[WhiteElo "2183"]
[BlackElo "2350"]
[PlyCount "60"]
[EventDate "2025.04.10"]
[EventType "swiss"]
[EventCountry "IND"]
[SourceTitle "playchess.com"]
[Source "ChessBase"]
[SourceQuality "1"]
[TimeControl "5400+30"]

1. e4 {[%emt 0:00:04]} e6 {[%emt 0:06:03]} 2. d4 {[%emt 0:00:08]} d5 {[%emt 0:00:51]} 3. Nc3 {[%emt 0:00:06]} Nf6 {[%emt 0:00:04]} 4. e5 {[%emt 0:00:06]} Nfd7 {[%emt 0:00:06]} 5. f4 {[%emt 0:00:05]} c5 {[%emt 0:00:06]} 6. Nf3 {[%emt 0:00:05]} Nc6 {[%emt 0:00:07]} 7. Be3 {[%emt 0:00:05]} a6 {[%emt 0:01:35]} 8. a3 {[%emt 0:05:01]} cxd4 {[%emt 0:02:55]} 9. Nxd4 {[%emt 0:00:11]} Bc5 {[%emt 0:00:37]} 10. Qd2 {[%emt 0:02:30]} O-O {[%emt 0:00:14]} 11. Be2 {[%emt 0:04:28]} Qc7 {[%emt 0:09:04]} 12. O-O {[%emt 0:09:27]} Nxd4 {[%emt 0:03:09]} 13. Bxd4 {[%emt 0:00:10]} b5 {[%emt 0:00:19]} 14. b4 {[%emt 0:08:36]} Bxd4+ {[%emt 0:06:39]} 15. Qxd4 {[%emt 0:00:08]} Nb6 {[%emt 0:09:30]} 16. Bd3 {[%emt 0:04:10]} Bd7 {[%emt 0:02:34]} 17. Ne2 {[%emt 0:15:33]} Rfc8 {[%emt 0:07:10]} 18. Qf2 {[%emt 0:12:07]} Nc4 {[%emt 0:21:26]} 19. Qh4 {[%emt 0:03:03]} h6 {[%emt 0:05:08]} 20. Rf3 {[%emt 0:13:58]} Qa7+ {[%emt 0:08:52]} 21. Kh1 {[%emt 0:01:14]} Ne3 {[%emt 0:08:26]} 22. Rg3 {[%emt 0:11:40]} Kf8 {[%emt 0:00:28]} 23. Rxg7 {[%emt 0:00:42]} Kxg7 {[%emt 0:04:16]} 24. Qf6+ {[%emt 0:00:06]} Kf8 {[%emt 0:01:01]} 25. Qh8+ {[%emt 0:00:06]} Ke7 {[%emt 0:00:01]} 26. Qf6+ {[%emt 0:00:06]} Kf8 {[%emt 0:00:09]} 27. Qh8+ {[%emt 0:00:04]} Ke7 {[%emt 0:00:02]} 28. Qf6+ {[%emt 0:00:08]} Kf8 {[%emt 0:00:05]} 29. Qh8+ {[%emt 0:00:04]} Ke7 {[%emt 0:00:08]} 30. Qf6+ {[%emt 0:00:04]} Kf8 1/2-1/2

[Event "2nd Namma Bengaluru Open-A 2025"]
[Site "Bengaluru"]
[Date "2025.04.18"]
[Round "10.24"]
[White "Koustuv Dash"]
[Black "Rajesh, V A V"]
[Result "0-1"]
[Annotator "RC"]
[ECO "E44"]
[WhiteElo "2131"]
[BlackElo "2331"]
[PlyCount "152"]
[EventDate "2025.04.10"]
[EventType "swiss"]
[EventCountry "IND"]
[SourceTitle "playchess.com"]
[Source "ChessBase"]
[SourceQuality "1"]
[TimeControl "5400+30"]

1. d4 {[%emt 0:03:51]} Nf6 {[%emt 0:00:18]} 2. c4 {[%emt 0:00:19]} e6 {[%emt 0:00:06]} 3. Nc3 {[%emt 0:00:25]} Bb4 {[%emt 0:00:39]} 4. e3 {[%emt 0:00:08]} b6 {[%emt 0:00:15]} 5. Nge2 {[%emt 0:03:13]} Bb7 {[%emt 0:00:08]} 6. a3 {[%emt 0:00:17]} Be7 {[%emt 0:01:07]} 7. d5 {[%emt 0:01:08]} exd5 {[%emt 0:01:28]} 8. cxd5 {[%emt 0:00:33]} O-O {[%emt 0:00:05]} 9. g3 {[%emt 0:04:51]} Re8 {[%emt 0:01:50]} 10. Bg2 {[%emt 0:00:34]} Bf8 {[%emt 0:01:59]} 11. O-O {[%emt 0:01:43]} c6 {[%emt 0:01:06]} 12. e4 {[%emt 0:18:26]} Na6 {[%emt 0:14:33]} 13. b4 {[%emt 0:06:03]} cxd5 {[%emt 0:08:11]} 14. exd5 {[%emt 0:01:41]} d6 {[%emt 0:08:49]} 15. Nd4 {[%emt 0:12:24]} Nc7 {[%emt 0:00:22]} 16. Qb3 {[%emt 0:02:50]} h6 {[%emt 0:04:23]} 17. h3 {[%emt 0:05:07]} Qd7 {[%emt 0:00:54]} 18. Be3 {[%emt 0:03:51]} Re5 {[%emt 0:06:03]} 19. Nc6 {[%emt 0:07:42]} Rh5 {[%emt 0:03:01]} 20. g4 {[%emt 0:03:19]} Nxg4 {[%emt 0:04:24]} 21. hxg4 {[%emt 0:00:02]} Qxg4 {[%emt 0:00:09]} 22. b5 {[%emt 0:01:02]} Qh4 {[%emt 0:01:34]} 23. Rfe1 {[%emt 0:07:04]} Bc8 {[%emt 0:01:01]} 24. Rad1 {[%emt 0:03:25]} Ne8 {[%emt 0:05:32]} 25. Qb4 {[%emt 0:06:48]} Qh2+ {[%emt 0:01:39]} 26. Kf1 {[%emt 0:00:01]} g5 {[%emt 0:06:08]} 27. Bd4 {[%emt 0:04:21]} Bf5 {[%emt 0:02:49]} 28. Re3 {[%emt 0:02:02]} Rh4 {[%emt 0:00:25]} 29. Ne2 {[%emt 0:01:03]} Nf6 {[%emt 0:00:56]} 30. Qc3 {[%emt 0:00:33]} Nh5 {[%emt 0:00:47]} 31. Ng1 {[%emt 0:00:40]} Rg4 {[%emt 0:02:41]} 32. Bf3 {[%emt 0:00:31]} Rxg1+ {[%emt 0:00:32]} 33. Ke2 {[%emt 0:00:01]} Nf4+ {[%emt 0:03:50]} 34. Kd2 {[%emt 0:00:03]} Qxf2+ {[%emt 0:00:23]} 35. Kc1 {[%emt 0:01:24]} Rxd1+ {[%emt 0:00:42]} 36. Bxd1 {[%emt 0:00:02]} Qf1 {[%emt 0:01:57]} 37. Bh8 {[%emt 0:00:58]} Nxd5 {[%emt 0:00:42]} 38. Rf3 {[%emt 0:00:32]} Nxc3 {[%emt 0:00:15]} 39. Rxf1 {[%emt 0:00:02]} Bd3 {[%emt 0:01:57]} 40. Rf3 {[%emt 0:00:50]} Bxb5 {[%emt 0:00:25]} 41. Bxc3 {[%emt 0:00:21]} Bxc6 {[%emt 0:00:03]} 42. Rf2 {[%emt 0:00:25]} Bd5 {[%emt 0:00:07]} 43. Kd2 {[%emt 0:00:51]} Bg7 {[%emt 0:00:21]} 44. Bb4 {[%emt 0:00:31]} Be5 {[%emt 0:00:05]} 45. a4 {[%emt 0:00:06]} Rc8 {[%emt 0:00:12]} 46. a5 {[%emt 0:00:33]} bxa5 {[%emt 0:00:22]} 47. Bxa5 {[%emt 0:00:02]} Bf4+ {[%emt 0:00:06]} 48. Kd3 {[%emt 0:00:16]} Kg7 {[%emt 0:00:40]} 49. Bh5 {[%emt 0:00:25]} Be6 {[%emt 0:00:37]} 50. Bc3+ {[%emt 0:00:10]} Be5 {[%emt 0:00:06]} 51. Bd2 {[%emt 0:00:17]} f5 {[%emt 0:00:07]} 52. Be3 {[%emt 0:00:12]} a5 {[%emt 0:00:05]} 53. Bd1 {[%emt 0:01:06]} Rc3+ {[%emt 0:00:11]} 54. Kd2 {[%emt 0:00:27]} f4 {[%emt 0:01:39]} 55. Bb6 {[%emt 0:00:11]} Bf5 {[%emt 0:00:09]} 56. Bxa5 {[%emt 0:00:28]} Rd3+ {[%emt 0:00:04]} 57. Ke2 {[%emt 0:01:57]} Ra3 {[%emt 0:00:11]} 58. Bb4 {[%emt 0:00:43]} Ra2+ {[%emt 0:00:10]} 59. Ke1 {[%emt 0:00:30]} Rxf2 {[%emt 0:00:09]} 60. Kxf2 {[%emt 0:00:01]} g4 {[%emt 0:00:06]} 61. Be1 {[%emt 0:00:24]} Bd4+ {[%emt 0:00:32]} 62. Kg2 {[%emt 0:00:10]} Be4+ {[%emt 0:00:40]} 63. Kh2 {[%emt 0:00:11]} g3+ {[%emt 0:00:30]} 64. Bxg3 {[%emt 0:01:49]} fxg3+ {[%emt 0:00:04]} 65. Kxg3 {[%emt 0:00:06]} Be3 {[%emt 0:00:06]} 66. Ba4 {[%emt 0:00:09]} d5 {[%emt 0:00:11]} 67. Bd1 {[%emt 0:00:03]} d4 {[%emt 0:00:03]} 68. Ba4 {[%emt 0:00:06]} d3 {[%emt 0:00:10]} 69. Bb3 {[%emt 0:00:07]} Kf6 {[%emt 0:00:11]} 70. Bd1 {[%emt 0:00:07]} Kg5 {[%emt 0:00:12]} 71. Bb3 {[%emt 0:00:07]} h5 {[%emt 0:00:33]} 72. Bd1 {[%emt 0:00:07]} h4+ {[%emt 0:00:08]} 73. Kh2 {[%emt 0:00:06]} Bf5 {[%emt 0:00:21]} 74. Kg2 {[%emt 0:00:17]} Bg4 {[%emt 0:00:07]} 75. Bf3 {[%emt 0:00:13]} Bxf3+ {[%emt 0:00:26]} 76. Kf1 {[%emt 0:00:03]} h3 {[%emt 0:00:29]} 0-1

[Event "2nd Namma Bengaluru Open-A 2025"]
[Site "Bengaluru"]
[Date "2025.04.18"]
[Round "10.25"]
[White "Reyan"]
[Black "Krishna Teja, N."]
[Result "1/2-1/2"]
[Annotator "RC"]
[ECO "B13"]
[WhiteElo "1986"]
[BlackElo "2321"]
[PlyCount "217"]
[EventDate "2025.04.10"]
[EventType "swiss"]
[EventCountry "IND"]
[SourceTitle "playchess.com"]
[Source "ChessBase"]
[SourceQuality "1"]
[TimeControl "5400+30"]

1. e4 {[%emt 0:00:11]} c6 {[%emt 0:02:12]} 2. d4 {[%emt 0:00:11]} d5 {[%emt 0:00:05]} 3. exd5 {[%emt 0:00:05]} cxd5 {[%emt 0:00:06]} 4. Bd3 {[%emt 0:00:09]} Nc6 {[%emt 0:01:06]} 5. c3 {[%emt 0:00:06]} Nf6 {[%emt 0:00:05]} 6. Bf4 {[%emt 0:00:06]} Bg4 {[%emt 0:00:04]} 7. Qb3 {[%emt 0:00:06]} Qd7 {[%emt 1:30:22]} 8. Nd2 {[%emt 0:00:39]} e6 {[%emt 0:00:00]} 9. Ngf3 {[%emt 0:00:07]} Bd6 {[%emt 0:00:00]} 10. Bxd6 {[%emt 0:00:06]} Qxd6 {[%emt 0:00:00]} 11. O-O {[%emt 0:00:15]} O-O {[%emt 0:00:00]} 12. Rae1 {[%emt 0:00:15]} Ne7 {[%emt 0:00:00]} 13. Ne5 {[%emt 0:00:37]} Bf5 {[%emt 0:00:00]} 14. Bxf5 {[%emt 0:00:52]} Nxf5 {[%emt 0:00:00]} 15. g4 {[%emt 0:00:34]} Ne7 {[%emt 0:00:00]} 16. f4 {[%emt 0:01:29]} b5 {[%emt 0:00:00]} 17. Re3 {[%emt 0:26:10]} h5 {[%emt 0:00:00]} 18. h3 {[%emt 0:13:37]} g6 {[%emt 0:00:00]} 19. Rg3 {[%emt 0:07:53]} Kg7 {[%emt 0:00:00]} 20. f5 {[%emt 0:09:34]} hxg4 {[%emt 0:00:00]} 21. hxg4 {[%emt 0:00:48]} Nh7 {[%emt 0:00:00]} 22. Qxb5 {[%emt 0:18:34]} Rad8 {[%emt 0:00:00]} 23. f6+ {[%emt 0:02:19]} Nxf6 {[%emt 0:00:00]} 24. Rgf3 {[%emt 0:00:09]} Nxg4 {[%emt 0:00:00]} 25. Nxg4 {[%emt 0:07:21]} Rb8 {[%emt 0:00:00]} 26. Qe2 {[%emt 0:05:32]} Rxb2 {[%emt 0:00:00]} 27. Nc4 {[%emt 0:03:43]} Rxe2 {[%emt 0:00:00]} 28. Nxd6 {[%emt 0:00:03]} f5 {[%emt 0:00:00]} 29. Re3 {[%emt 0:00:38]} Rxe3 {[%emt 0:00:00]} 30. Nxe3 {[%emt 0:00:01]} Rb8 {[%emt 0:00:00]} 31. c4 {[%emt 0:02:04]} dxc4 {[%emt 0:00:00]} 32. Nexc4 {[%emt 0:00:25]} Nc6 {[%emt 0:00:00]} 33. Rd1 {[%emt 0:00:08]} Kf6 {[%emt 0:00:00]} 34. Kf2 {[%emt 0:00:40]} Rh8 {[%emt 0:00:00]} 35. Ne5 {[%emt 0:00:44]} Nxd4 {[%emt 0:00:00]} 36. Nd7+ {[%emt 0:00:26]} Ke7 {[%emt 0:00:00]} 37. Rxd4 {[%emt 0:00:08]} Rd8 {[%emt 0:00:00]} 38. Ne5 {[%emt 0:01:06]} Rxd6 {[%emt 0:00:00]} 39. Nxg6+ {[%emt 0:00:09]} Kd7 {[%emt 0:00:00]} 40. Ra4 {[%emt 0:00:38]} a6 {[%emt 0:00:00]} 41. Ke3 {[%emt 0:00:29]} Kc7 {[%emt 0:00:00]} 42. Kf4 {[%emt 0:01:39]} Kb6 {[%emt 0:00:00]} 43. Ke5 {[%emt 0:00:25]} Kb5 {[%emt 0:00:00]} 44. Rh4 {[%emt 0:00:38]} Rd2 {[%emt 0:00:00]} 45. a4+ {[%emt 0:00:16]} Ka5 {[%emt 0:00:00]} 46. Kxe6 {[%emt 0:00:48]} Re2+ {[%emt 0:00:00]} 47. Kxf5 {[%emt 0:00:34]} Ra2 {[%emt 0:00:00]} 48. Ne5 {[%emt 0:00:31]} Rxa4 {[%emt 0:00:00]} 49. Nc6+ {[%emt 0:00:18]} Kb5 {[%emt 0:00:00]} 50. Na7+ {[%emt 0:00:14]} Ka5 {[%emt 0:00:00]} 51. Nc6+ {[%emt 0:00:01]} Kb5 {[%emt 0:00:00]} 52. Nd4+ {[%emt 0:00:01]} Kb4 {[%emt 0:00:00]} 53. Ke5 {[%emt 0:01:28]} Ra2 {[%emt 0:00:00]} 54. Kd5 {[%emt 0:00:26]} Rg2 {[%emt 0:00:00]} 55. Nc6+ {[%emt 0:00:33]} Kc3 {[%emt 0:00:00]} 56. Rh3+ {[%emt 0:00:09]} Kd2 {[%emt 0:00:00]} 57. Ra3 {[%emt 0:00:28]} Rg5+ {[%emt 0:00:00]} 58. Ne5 {[%emt 0:00:03]} Rg8 {[%emt 0:00:00]} 59. Rxa6 {[%emt 0:00:10]} Rd8+ {[%emt 0:00:00]} 60. Ke4 {[%emt 0:00:06]} Kc3 {[%emt 0:00:00]} 61. Rc6+ {[%emt 0:00:49]} Kb4 {[%emt 0:00:25]} 62. Rc1 {[%emt 0:00:39]} Kb5 {[%emt 0:00:27]} 63. Nc6 {[%emt 0:00:49]} Rd6 {[%emt 0:00:50]} 64. Nd4+ {[%emt 0:00:14]} Kb6 {[%emt 0:00:15]} 65. Ke5 {[%emt 0:00:15]} Rd7 {[%emt 0:00:58]} 66. Rc4 {[%emt 0:00:13]} Rh7 {[%emt 0:00:21]} 67. Kd6 {[%emt 0:00:53]} Rh6+ {[%emt 0:00:20]} 68. Ne6 {[%emt 0:00:04]} Kb5 {[%emt 0:00:09]} 69. Rc8 {[%emt 0:00:09]} Kb4 {[%emt 0:00:29]} 70. Ke5 {[%emt 0:00:35]} Rh5+ {[%emt 0:00:10]} 71. Ke4 {[%emt 0:00:04]} Rh4+ {[%emt 0:00:36]} 72. Nf4 {[%emt 0:00:04]} Kb5 {[%emt 0:00:26]} 73. Ke5 {[%emt 0:00:19]} Rh1 {[%emt 0:00:19]} 74. Ke4 {[%emt 0:01:25]} Rh4 {[%emt 0:00:09]} 75. Ke5 {[%emt 0:00:24]} Rh1 {[%emt 0:00:06]} 76. Nd3 {[%emt 0:00:11]} Rh5+ {[%emt 0:00:11]} 77. Kd4 {[%emt 0:00:07]} Rh4+ {[%emt 0:00:10]} 78. Kd5 {[%emt 0:00:04]} Rh5+ {[%emt 0:00:11]} 79. Ne5 {[%emt 0:00:07]} Kb4 {[%emt 0:00:10]} 80. Rc1 {[%emt 0:00:44]} Kb3 {[%emt 0:00:19]} 81. Kd4 {[%emt 0:00:53]} Rh4+ {[%emt 0:00:13]} 82. Ke3 {[%emt 0:00:06]} Rh3+ {[%emt 0:00:06]} 83. Nf3 {[%emt 0:00:02]} Kb4 {[%emt 0:00:11]} 84. Ke4 {[%emt 0:00:24]} Rh8 {[%emt 0:00:14]} 85. Rc7 {[%emt 0:00:12]} Rh3 {[%emt 0:00:44]} 86. Rc8 {[%emt 0:00:26]} Rh7 {[%emt 0:00:19]} 87. Kd5 {[%emt 0:00:56]} Rd7+ {[%emt 0:00:23]} 88. Ke5 {[%emt 0:00:09]} Rh7 {[%emt 0:00:19]} 89. Ke6 {[%emt 0:00:18]} Rh5 {[%emt 0:00:38]} 90. Nd2 {[%emt 0:00:31]} Kb5 {[%emt 0:00:28]} 91. Nf3 {[%emt 0:00:46]} Kb4 {[%emt 0:00:12]} 92. Rc1 {[%emt 0:00:27]} Kb3 {[%emt 0:00:16]} 93. Nd4+ {[%emt 0:00:29]} Kb4 {[%emt 0:00:12]} 94. Kd6 {[%emt 0:00:23]} Rh6+ {[%emt 0:00:12]} 95. Kc7 {[%emt 0:00:05]} Rg6 {[%emt 0:00:48]} 96. Nf5 {[%emt 0:00:32]} Rg5 {[%emt 0:00:21]} 97. Ne7 {[%emt 0:00:41]} Rh5 {[%emt 0:00:17]} 98. Kb6 {[%emt 0:00:18]} Kb3 {[%emt 0:00:43]} 99. Nc6 {[%emt 0:00:25]} Kb2 {[%emt 0:00:08]} 100. Rc4 {[%emt 0:00:07]} Kb3 {[%emt 0:00:13]} 101. Re4 {[%emt 0:00:31]} Kc3 {[%emt 0:00:16]} 102. Ne5 {[%emt 0:00:07]} Rh8 {[%emt 0:00:17]} 103. Rg4 {[%emt 0:00:12]} Rh5 {[%emt 0:00:18]} 104. Nc4 {[%emt 0:00:28]} Rh6+ {[%emt 0:00:14]} 105. Kc5 {[%emt 0:00:05]} Rh5+ {[%emt 0:00:09]} 106. Kd6 {[%emt 0:00:04]} Rh8 {[%emt 0:00:23]} 107. Kd5 {[%emt 0:00:14]} Rd8+ {[%emt 0:00:18]} 108. Nd6 {[%emt 0:00:09]} Kc2 {[%emt 0:00:14]} 109. Rg3 {[%emt 0:00:09]} 1/2-1/2

[Event "2nd Namma Bengaluru Open-A 2025"]
[Site "Bengaluru"]
[Date "2025.04.18"]
[Round "10.26"]
[White "Samarth Sreeni Warrier"]
[Black "Krishnan, Ritvik"]
[Result "0-1"]
[Annotator "RC"]
[ECO "D37"]
[WhiteElo "1954"]
[BlackElo "2316"]
[PlyCount "132"]
[EventDate "2025.04.10"]
[EventType "swiss"]
[EventCountry "IND"]
[SourceTitle "playchess.com"]
[Source "ChessBase"]
[SourceQuality "1"]
[TimeControl "5400+30"]

1. d4 {[%emt 0:01:50]} Nf6 {[%emt 1:31:00]} 2. Nf3 {[%emt 0:01:55]} d5 {[%emt 0:00:00]} 3. c4 {[%emt 0:00:28]} e6 {[%emt 0:00:00]} 4. Nc3 {[%emt 0:00:08]} Be7 {[%emt 0:00:00]} 5. Bf4 {[%emt 0:00:05]} O-O {[%emt 0:00:00]} 6. e3 {[%emt 0:00:05]} c5 {[%emt 0:00:00]} 7. dxc5 {[%emt 0:00:20]} Bxc5 {[%emt 0:00:00]} 8. Qc2 {[%emt 0:00:24]} Nc6 {[%emt 0:03:30]} 9. Rd1 {[%emt 0:00:19]} Re8 {[%emt 0:00:00]} 10. a3 {[%emt 0:07:58]} e5 {[%emt 0:00:00]} 11. Bg5 {[%emt 0:05:04]} d4 {[%emt 0:00:00]} 12. Nd5 {[%emt 0:01:39]} Be7 {[%emt 0:00:00]} 13. Nxe7+ {[%emt 0:01:04]} Qxe7 {[%emt 0:00:00]} 14. Be2 {[%emt 0:16:44]} d3 {[%emt 0:00:00]} 15. Bxd3 {[%emt 0:02:10]} e4 {[%emt 0:00:00]} 16. Bxf6 {[%emt 0:01:03]} exd3 {[%emt 0:00:00]} 17. Bxe7 {[%emt 0:03:21]} dxc2 {[%emt 0:00:00]} 18. Rc1 {[%emt 0:00:02]} Rxe7 {[%emt 0:00:00]} 19. Rxc2 {[%emt 0:00:11]} Bf5 {[%emt 0:00:00]} 20. Rc3 {[%emt 0:00:19]} a5 {[%emt 0:00:00]} 21. O-O {[%emt 0:02:09]} Rd8 {[%emt 0:00:00]} 22. Rfc1 {[%emt 0:01:39]} Red7 {[%emt 0:00:00]} 23. Kf1 {[%emt 0:00:54]} f6 {[%emt 0:00:00]} 24. h3 {[%emt 0:01:46]} Kf7 {[%emt 0:00:00]} 25. b3 {[%emt 0:01:26]} Rd1+ {[%emt 0:00:00]} 26. Ke2 {[%emt 0:00:44]} Rxc1 {[%emt 0:00:00]} 27. Rxc1 {[%emt 0:00:04]} Bd3+ {[%emt 0:00:00]} 28. Ke1 {[%emt 0:00:08]} Ke6 {[%emt 0:10:00]} 29. Rd1 {[%emt 0:05:12]} Rd7 {[%emt 0:00:00]} 30. Nd2 {[%emt 0:01:59]} Bg6 {[%emt 0:00:00]} 31. Nf3 {[%emt 0:01:13]} Bc2 {[%emt 0:00:00]} 32. Rxd7 {[%emt 0:01:49]} Kxd7 {[%emt 0:00:00]} 33. Nd2 {[%emt 0:00:08]} a4 {[%emt 0:00:00]} 34. bxa4 {[%emt 0:00:27]} Kd6 {[%emt 0:00:00]} 35. Ke2 {[%emt 0:03:19]} Kc5 {[%emt 0:00:00]} 36. f4 Na5 {[%emt 0:04:00]} 37. Nf3 {[%emt 0:01:23]} Nb3 {[%emt 0:00:30]} 38. g4 {[%emt 0:01:12]} Be4 {[%emt 0:00:30]} 39. Ng1 {[%emt 0:01:24]} Kxc4 {[%emt 0:00:00]} 40. g5 {[%emt 0:00:48]} f5 {[%emt 0:00:00]} 41. h4 {[%emt 0:00:01]} Kc3 {[%emt 0:00:00]} 42. Nh3 {[%emt 0:00:35]} Nc1+ {[%emt 0:00:00]} 43. Kd1 {[%emt 0:00:46]} Nd3 {[%emt 0:00:00]} 44. Ng1 {[%emt 0:00:36]} Nb2+ {[%emt 0:00:00]} 45. Ke2 {[%emt 0:00:28]} Kc2 {[%emt 0:00:00]} 46. a5 {[%emt 0:01:20]} g6 {[%emt 0:00:00]} 47. Nh3 {[%emt 0:00:40]} Nd3 {[%emt 0:00:00]} 48. Ng1 {[%emt 0:01:07]} Nc1+ {[%emt 0:00:00]} 49. Ke1 {[%emt 0:00:57]} Kd3 {[%emt 0:00:00]} 50. Kf2 {[%emt 0:00:03]} Kd2 {[%emt 0:00:00]} 51. Nh3 {[%emt 0:00:49]} Nd3+ {[%emt 0:00:00]} 52. Kg3 {[%emt 0:00:07]} Kxe3 {[%emt 0:00:00]} 53. a4 {[%emt 0:00:27]} Bf3 {[%emt 0:00:00]} 54. a6 {[%emt 0:02:25]} bxa6 {[%emt 0:00:00]} 55. a5 {[%emt 0:00:01]} Bg4 {[%emt 0:00:00]} 56. Ng1 {[%emt 0:00:27]} Nxf4 {[%emt 0:00:00]} 57. h5 {[%emt 0:00:11]} Ne2+ {[%emt 0:00:00]} 58. Nxe2 {[%emt 0:00:07]} Bxe2 {[%emt 0:00:00]} 59. hxg6 {[%emt 0:00:38]} hxg6 {[%emt 0:00:00]} 60. Kh4 {[%emt 0:00:17]} Bb5 {[%emt 0:00:00]} 61. Kg3 {[%emt 0:01:10]} f4+ {[%emt 0:00:00]} 62. Kg2 {[%emt 0:00:22]} f3+ {[%emt 0:00:00]} 63. Kg3 {[%emt 0:00:07]} f2 {[%emt 0:00:00]} 64. Kg2 {[%emt 0:00:05]} f1=Q+ {[%emt 0:00:00]} 65. Kh2 {[%emt 0:00:05]} Qf2+ {[%emt 0:00:00]} 66. Kh3 {[%emt 0:00:06]} Bd7# {[%emt 0:00:00]} 0-1

[Event "2nd Namma Bengaluru Open-A 2025"]
[Site "Bengaluru"]
[Date "2025.04.18"]
[Round "10.27"]
[White "Sriram, Jha"]
[Black "Mehta Naitik R"]
[Result "1/2-1/2"]
[Annotator "RC"]
[ECO "D30"]
[WhiteElo "2315"]
[BlackElo "2227"]
[PlyCount "115"]
[EventDate "2025.04.10"]
[EventType "swiss"]
[EventCountry "IND"]
[SourceTitle "playchess.com"]
[Source "ChessBase"]
[SourceQuality "1"]
[TimeControl "5400+30"]

1. Nf3 {[%emt 0:00:04]} d5 {[%emt 0:07:19]} 2. g3 {[%emt 0:00:13]} c5 {[%emt 0:00:37]} 3. Bg2 {[%emt 0:00:23]} Nf6 {[%emt 0:00:13]} 4. O-O {[%emt 0:00:40]} Nc6 {[%emt 0:00:03]} 5. d4 {[%emt 0:00:39]} e6 {[%emt 0:00:04]} 6. c4 {[%emt 0:00:43]} Be7 {[%emt 0:00:04]} 7. cxd5 {[%emt 0:00:51]} exd5 {[%emt 0:00:01]} 8. dxc5 {[%emt 0:03:57]} Bxc5 {[%emt 0:00:09]} 9. Qc2 {[%emt 0:00:10]} Be7 {[%emt 0:00:06]} 10. Rd1 {[%emt 0:00:25]} O-O {[%emt 0:00:06]} 11. Nc3 {[%emt 0:00:01]} Bg4 {[%emt 0:01:43]} 12. Bg5 {[%emt 0:07:11]} d4 {[%emt 0:00:14]} 13. Qa4 {[%emt 0:27:19]} Qb6 {[%emt 0:09:58]} 14. Bxf6 {[%emt 0:15:40]} Bxf6 {[%emt 0:00:05]} 15. Nd5 {[%emt 0:00:01]} Qxb2 {[%emt 0:00:05]} 16. Nxf6+ {[%emt 0:00:03]} gxf6 {[%emt 0:00:02]} 17. Rab1 {[%emt 0:10:26]} Qxe2 {[%emt 0:00:16]} 18. Nxd4 {[%emt 0:00:14]} Nxd4 {[%emt 0:02:49]} 19. Rxd4 {[%emt 0:05:20]} Bf5 {[%emt 0:00:32]} 20. Be4 {[%emt 0:00:09]} Bg6 {[%emt 0:04:32]} 21. Bxg6 {[%emt 0:04:56]} hxg6 {[%emt 0:00:04]} 22. Re4 {[%emt 0:00:51]} Qa6 {[%emt 0:04:14]} 23. Qxa6 {[%emt 0:00:45]} bxa6 {[%emt 0:00:42]} 24. Ra4 {[%emt 0:21:29]} Rfd8 {[%emt 0:04:11]} 25. Rxa6 {[%emt 0:00:00]} Rd7 {[%emt 0:01:56]} 26. Rxf6 {[%emt 0:00:00]} a5 {[%emt 0:00:03]} 27. Rb2 {[%emt 0:00:00]} Raa7 {[%emt 0:01:05]} 28. Kg2 {[%emt 0:00:00]} Rd5 {[%emt 0:00:05]} 29. h4 {[%emt 0:00:00]} Kg7 {[%emt 0:00:22]} 30. Rfb6 {[%emt 0:00:00]} Rd4 {[%emt 0:00:40]} 31. R6b5 {[%emt 0:00:00]} Ra4 {[%emt 0:00:10]} 32. h5 {[%emt 0:00:00]} gxh5 {[%emt 0:00:11]} 33. Rxh5 {[%emt 0:00:00]} Re7 {[%emt 0:00:14]} 34. Rg5+ {[%emt 0:00:00]} Kf6 {[%emt 0:00:05]} 35. Rc5 {[%emt 0:00:00]} Kg7 {[%emt 0:01:40]} 36. Rc6 {[%emt 0:00:00]} Ra3 {[%emt 0:01:53]} 37. Rc4 {[%emt 0:00:00]} Re6 {[%emt 0:00:35]} 38. Rg4+ {[%emt 0:00:00]} Rg6 {[%emt 0:00:04]} 39. Kh3 {[%emt 0:00:00]} Rxg4 {[%emt 0:00:23]} 40. Kxg4 {[%emt 0:00:00]} Kg6 {[%emt 0:00:09]} 41. f4 {[%emt 0:00:00]} Ra4 {[%emt 0:00:03]} 42. Kh4 {[%emt 0:00:00]} Kh6 {[%emt 0:00:47]} 43. Rf2 {[%emt 0:00:00]} Rb4 {[%emt 0:01:35]} 44. Rd2 {[%emt 0:00:00]} Ra4 {[%emt 0:00:09]} 45. Rf2 {[%emt 0:00:00]} Rb4 {[%emt 0:00:09]} 46. Rf3 {[%emt 0:00:00]} a4 {[%emt 0:01:04]} 47. Rf2 {[%emt 0:00:00]} Kg6 {[%emt 0:05:38]} 48. Kg4 {[%emt 0:00:00]} f5+ {[%emt 0:01:12]} 49. Kh3 {[%emt 0:00:00]} Rb1 {[%emt 0:00:02]} 50. Rf3 {[%emt 0:01:55]} Rh1+ {[%emt 0:07:02]} 51. Kg2 {[%emt 0:00:02]} Rh8 {[%emt 0:00:13]} 52. Ra3 {[%emt 0:01:27]} Ra8 {[%emt 0:00:02]} 53. Kf3 {[%emt 0:04:23]} Kh5 {[%emt 0:00:01]} 54. Rc3 {[%emt 0:00:22]} Rd8 {[%emt 0:00:02]} 55. Rc6 {[%emt 0:01:52]} Rd3+ {[%emt 0:00:06]} 56. Kg2 {[%emt 0:00:05]} a3 {[%emt 0:05:58]} 57. Rf6 {[%emt 0:00:33]} Rxg3+ {[%emt 0:00:11]} 58. Kxg3 {[%emt 0:03:05]} 1/2-1/2